Cogmind - Beta 13 @@@ ROGUE MODE // 2024.06.05 @ 03:34:02 Player: skkpq Result: Destroyed by G-47 Trooper with Particle Gun Performance ------------- Evolutions (2) 1000 Regions Visited (5) 1000 Robots Destroyed (39) 195 Value Destroyed (1189) 1189 Prototype IDs (3) 60 Alien Tech Used (0) 0 Bonus (420) 420 TOTAL SCORE: 3864 Bonus ------- High Alert Combat Kills 2 Follower Combat Kills 418 Cogmind --------- Core Integrity 0/550 Matter 283/300 Energy 160/160 System Corruption 5% Temperature Cool (9) Movement Walking (200) Ox1 Location -8/Storage Parts ------- > --- POWER (1) -------- Light Nuclear Core > --- PROPULSION (3) --- Light Treads Titanium Leg Titanium Leg > --- UTILITY (4) ------ Medium Storage Unit Melee Analysis Suite Improved Power Shielding > --- WEAPON (3) ------- Heavy Particle Cannon Hammer > --- INVENTORY (10) --- (None) Peak State ------------ > --- POWER ------------ Cold Fusion Reactor > --- PROPULSION ------- Carbon-fiber Leg Titanium Leg Titanium Leg > --- UTILITY ---------- Improved Heat Sink Medium Storage Unit Trap Scanner Improved Propulsion Shielding > --- WEAPON ----------- Beam Rifle Heavy Particle Cannon Katana > --- INVENTORY -------- Improved Ion Engine Titanium Leg Titanium Leg Compact Wheel Targeting Computer Beam Rifle Heavy Particle Cannon Heavy Particle Cannon Shotgun Hammer [Rating: 35] Favorites ----------- Power Improved Ion Engine Engine Improved Ion Engine Power Core Light Nuclear Core Reactor Cold Fusion Reactor Propulsion Improved Aluminum Leg Treads Light Treads Leg Improved Aluminum Leg Wheel Compact Wheel Hover Unit Aerolev Unit Flight Unit Improved VTOL Module Utility Medium Storage Unit Device Heat Sink Storage Medium Storage Unit Processor Melee Analysis Suite Protection Light Armor Plating Weapon Particle Cannon Energy Gun Heavy EM Pulse Gun Energy Cannon Particle Cannon Ballistic Gun Assault Rifle Impact Weapon Hammer Slashing Weapon Katana Build | -11 -10 -9 -9 -8 -8 ------- Run | Yrd Mat Mat Min Mat Sto Slots Evolved 4 | . . 2 . 2 . Power . | . . . . . . Propulsion 1 | . . 1 . . . Utility 2 | . . 1 . 1 . Weapon 1 | . . . . 1 . Parts Attached 64 | 6 11 4 7 7 29 Power 8 | 1 2 . 1 1 3 Engine 5 | 1 2 . 1 . 1 Core 2 | . . . . 1 1 Reactor 1 | . . . . . 1 Propulsion 25 | 2 4 2 5 1 11 Treads 1 | . . . . . 1 Leg 21 | 2 4 2 5 1 7 Wheel 1 | . . . . . 1 Hover 1 | . . . . . 1 Flight 1 | . . . . . 1 Utility 14 | 1 2 1 . 2 8 Device 4 | . 1 . . 2 1 Storage 3 | 1 1 1 . . . Processor 2 | . . . . . 2 Hackware . | . . . . . . Protection 5 | . . . . . 5 Artifact . | . . . . . . Weapon 17 | 2 3 1 1 3 7 Energy Gun 7 | 1 2 1 . . 3 Energy Cannon 6 | . 1 . . 3 2 Ballistic Gun 2 | 1 . . . . 1 Ballistic Cannon . | . . . . . . Launcher . | . . . . . . Special Weapon . | . . . . . . Impact Weapon 1 | . . . . . 1 Slashing Weapon 1 | . . . 1 . . Piercing Weapon . | . . . . . . Special Melee Weapon . | . . . . . . Unidentified Prototypes 3 | . . . . . 3 Corrupted Parts 3 | . . . 3 . . System Corruption 6 | . . . 6 . . Parts Lost 23 | . 1 1 1 1 19 Power 2 | . . . . . 2 Propulsion 6 | . . 1 1 . 4 Utility 6 | . . . . . 6 Weapon 9 | . 1 . . 1 7 Highest Loss Streak 14 | . 1 1 1 1 14 To Critical Strikes 1 | . . . . . 1 Average Slot Usage (%) 93 | . 93 97 98 96 89 Engine 7 | . 13 11 10 4 . Core 1 | . . . . 4 3 Leg 26 | . 26 32 32 27 22 Device 11 | . 11 11 11 14 11 Storage 15 | . 14 20 22 18 9 Protection 2 | . . . . . 8 Energy Gun 7 | . 12 11 11 3 3 Energy Cannon 10 | . 4 11 10 14 13 Ballistic Gun 2 | . 9 . . . . Slashing Weapon 3 | . . . . 9 8 Naked Turns . | . . . . . . Heaviest Build 40 | 14 25 28 28 35 40 Greatest Support 51 | 20 26 39 36 36 51 Greatest Overweight (x) 10 | 1 5 1 1 1 10 Average Overweight (x) . | . . . . . . Largest Inventory Capacity 10 | 8 10 10 10 10 10 Average Capacity 9 | 7 8 10 10 10 10 Most Carried 10 | 6 10 10 10 10 10 Average Carried 8 | 4 7 9 9 9 7 Final Capacity 10 | 8 10 10 10 10 10 Final Carried 10 | 6 10 8 10 10 . Class Distribution -------------------- 67% | Mutant 16% | Commander-Mutant 15% | Scavenger-Mutant Dominant Class ---------------- Mutant | -10/Materials Mutant | -9/Materials Mutant | -9/Mines Scavenger-Mutant | -8/Materials Commander-Mutant | -8/Storage Resources | -11 -10 -9 -9 -8 -8 ----------- Run | Yrd Mat Mat Min Mat Sto Matter Collected 954 | 229 201 200 40 110 174 Remotely . | . . . . . . Salvage Created 1560 | . 216 493 230 128 493 Parts 89 | . 15 31 9 7 27 Haulers Intercepted . | . . . . . . Recyclers Shooed 3 | . 2 . . . 1 Parts Field Recycled . | . . . . . . Retrieved Matter . | . . . . . . Parts Self-Destructed . | . . . . . . Prevented . | . . . . . . Kills | -11 -10 -9 -9 -8 -8 ------- Run | Yrd Mat Mat Min Mat Sto Combat Hostiles Destroyed 29 | . 5 8 5 2 9 Melee 4 | . . . . . 4 Guns 14 | . 4 4 4 . 2 Cannons 9 | . . 3 1 2 3 AOE 1 | . 1 . . . . Classes Destroyed 10 | . 2 6 1 . 1 Worker 2 | . . 1 . . 1 Builder 1 | . . 1 . . . Recycler 2 | . . 1 . . 1 Watcher 5 | . 1 3 . 1 . Swarmer 4 | . . 3 . . 1 Grunt 15 | . 5 3 3 2 2 Brawler 3 | . . 1 1 . 1 Duelist 1 | . . . 1 . . Sentry 5 | . . 1 . . 4 Demolisher 1 | . . . . . 1 Best Kill Streak 5 | . 3 5 3 2 3 Combat Bots Only 4 | . 3 4 3 2 3 Max Kills in Single Turn 2 | . 1 2 1 1 1 Gunslinging . | . . . . . . Exploded 1 | . 1 . . . . Melee 1 | . . . . . 1 Uniques/NPCs Destroyed . | . . . . . . Combat | -11 -10 -9 -9 -8 -8 -------- Run | Yrd Mat Mat Min Mat Sto Hostile Shots Fired 266 | . 33 39 18 11 165 Missed 61 | . 7 9 3 5 37 Damage Taken 3725 | . 345 410 251 95 2624 Core 673 | . 13 40 65 33 522 Absorbed by Shields . | . . . . . . Redirected to Shielding 133 | . . . . . 133 Core Remaining (%) 89 | 100 94 . 73 . . Volleys Fired 102 | . 26 28 15 8 25 Largest 2 | . 2 2 2 2 2 Hottest 150 | . 113 113 113 143 150 Shots Fired 187 | . 42 56 30 16 43 Gun 101 | . 41 28 15 3 14 Cannon 86 | . 1 28 15 13 29 Launcher . | . . . . . . Special . | . . . . . . Kinetic 29 | . 25 . . . 4 Thermal 96 | . 1 28 15 13 39 Explosive . | . . . . . . Electromagnetic 62 | . 16 28 15 3 . Robot Hit Streak 8 | . 4 5 5 4 8 Robot Miss Streak 6 | . 3 6 3 6 6 Penetration Max . | . . . . . . Secondary Targets 2 | . 2 . . . . Max Gunslinging Chain 1 | . 1 . . . . Shots Hit Robots 107 | . 19 25 18 6 39 Core Hits 51 | . 10 14 7 4 16 Critical Kills 2 | . . 1 . . 1 Critical Parts Destroyed 1 | . . . . . 1 Critical Strikes 6 | . . 1 1 . 4 Burn 2 | . . . . . 2 Meltdown 1 | . . 1 . . . Corrupt 1 | . . . 1 . . Smash 2 | . . . . . 2 Melee Attacks 20 | . . . . 1 19 Impact 12 | . . . . . 12 Slashing 8 | . . . . 1 7 Piercing . | . . . . . . Sneak Attacks 2 | . . . . . 2 Combat Hostiles . | . . . . . . Follow-up Attacks . | . . . . . . Damage Inflicted 2509 | . 352 614 393 132 1018 Guns 926 | . 272 288 206 . 160 Cannons 914 | . 20 224 122 132 416 Explosions 205 | . 60 102 43 . . Melee 440 | . . . . . 440 Ramming 24 | . . . 22 . 2 Kinetic 264 | . 192 . . . 72 Thermal 1207 | . 80 326 165 132 504 Explosive . | . . . . . . Electromagnetic 574 | . 80 288 206 . . Impact 189 | . . . . . 189 Slashing 251 | . . . . . 251 Piercing . | . . . . . . Highest Corruption 6 | . . . 6 . 5 Average Corruption 5 | . . . 5 . 5 Corruption Purged . | . . . . . . Corruption Blocked . | . . . . . . Effects 8 | . . . 5 . 3 Message Errors 2 | . . . 1 . 1 Matter Fused 3 | . . . 2 . 1 Energy Discharges 1 | . . . . . 1 Data Loss (minor) 1 | . . . 1 . . Data Loss (major) 1 | . . . 1 . . Overload Shots . | . . . . . . Overflow Damage 89 | . . . 7 . 82 Projectiles 27 | . . . . . 27 Explosions 7 | . . . 7 . . Melee 55 | . . . . . 55 Knockbacks 1 | . . . . . 1 Impact 1 | . . . . . 1 Kinetic . | . . . . . . Secondary . | . . . . . . Self-Inflicted Damage 92 | . . 49 43 . . Shots 2 | . . 1 1 . . Rammed . | . . . . . . Targets Rammed 4 | . . . 3 . 1 Kicked 4 | . . . 3 . 1 Crushed . | . . . . . . Highest Temperature 242 | . 24 129 175 57 242 Average Temperature 61 | . 6 44 80 21 89 Received Heat Transfer 1164 | . 198 93 72 36 765 Siege Activations . | . . . . . . Robots Corrupted . | . . . . . . Combat Hostiles . | . . . . . . Parts Fried 2 | . . 1 . . 1 Impact Corruptions 1 | . . . . . 1 Robots Melted 1 | . . 1 . . . Combat Hostiles 1 | . . 1 . . . Parts Melted 5 | . . 2 . . 3 Heat Transferred 2087 | . 87 557 322 222 899 Parts Sabotaged . | . . . . . . Parts Stolen . | . . . . . . Parts Stripped . | . . . . . . Power Chain Reactions 4 | . 1 2 1 . . Alert | -11 -10 -9 -9 -8 -8 ------- Run | Yrd Mat Mat Min Mat Sto Peak Influence 626 | . 186 341 182 148 626 Initial 70 | . . . 54 70 62 Average 176 | . 96 164 145 114 274 Maximum Alert Level 2 | . . 1 . . 2 Low Security (%) 67 | 100 100 54 100 100 34 Level 1 29 | . . 45 . . 57 Level 2 2 | . . . . . 7 Level 3 . | . . . . . . Level 4 . | . . . . . . Level 5 . | . . . . . . High Security . | . . . . . . Max Security . | . . . . . . Squads Dispatched 9 | . 1 . . 1 7 Investigation 3 | . . . . . 3 Extermination . | . . . . . . Reinforcement 2 | . 1 . . 1 . Assault 1 | . . . . . 1 Garrison 3 | . . . . . 3 Intercept . | . . . . . . Searches Triggered . | . . . . . . Construction Impeded . | . . . . . . Haulers Reinforced . | . . . . . . Active Scanning Responses . | . . . . . . Cargo Convoy Interrupts . | . . . . . . Stealth | -11 -10 -9 -9 -8 -8 --------- Run | Yrd Mat Mat Min Mat Sto Distress Signals 5 | . 1 . . . 4 Communications Jammed . | . . . . . . Distress Signals . | . . . . . . Times Spotted 70 | . 11 15 4 6 34 Peak Tracking Total 8 | . 4 3 2 3 8 Tactical Retreats 3 | . . . . . 3 Traps | -11 -10 -9 -9 -8 -8 ------- Run | Yrd Mat Mat Min Mat Sto Traps Triggered 1 | . . . . . 1 Indirectly . | . . . . . . Trap Hack Attempts . | . . . . . . Triggered . | . . . . . . Disarmed 6 | . . . . . 6 Reprogrammed . | . . . . . . Reused . | . . . . . . Traps Extracted . | . . . . . . Installed . | . . . . . . Triggered . | . . . . . . Machines | -11 -10 -9 -9 -8 -8 ---------- Run | Yrd Mat Mat Min Mat Sto Machines Disabled 2 | . . 1 . . 1 Max in Single Turn 1 | . . 1 . . . Machines Repaired . | . . . . . . Machines Dismantled . | . . . . . . Machines Sabotaged . | . . . . . . Overloaded Fab Kills . | . . . . . . Hacking | -11 -10 -9 -9 -8 -8 --------- Run | Yrd Mat Mat Min Mat Sto Machines Accessed 14 | . 1 3 . . 10 Terminals 11 | . 1 2 . . 8 Fabricators . | . . . . . . Repair Stations 1 | . . . . . 1 Recycling Units 1 | . . . . . 1 Scanalyzers 1 | . . 1 . . . Garrison Access . | . . . . . . Total Hacks 36 | . 3 7 . . 26 Successful 22 | . 2 4 . . 16 Failed 14 | . 1 3 . . 10 Catastrophic 3 | . . 1 . . 2 Database Lockouts . | . . . . . . Manual 14 | . 3 4 . . 7 Terminals 29 | . 3 5 . . 21 Fabricators . | . . . . . . Repair Stations 3 | . . . . . 3 Recycling Units 2 | . . . . . 2 Scanalyzers 2 | . . 2 . . . Garrison Access . | . . . . . . Terminal Hacks 17 | . 1 2 . . 14 Record 1 | . . . . . 1 Part Schematic 2 | . . . . . 2 Robot Schematic 1 | . . . . . 1 Open Door 1 | . . . . . 1 Alert Level 3 | . . 1 . . 2 Unreport Threat 1 | . . . . . 1 Locate Traps 3 | . 1 1 . . 1 Disarm Traps 1 | . . . . . 1 Investigation Status 1 | . . . . . 1 Recall Investigation 3 | . . . . . 3 Fabricator Hacks . | . . . . . . Repair Station Hacks 1 | . . . . . 1 Scan Component 1 | . . . . . 1 Recycling Unit Hacks 1 | . . . . . 1 Report Inventory 1 | . . . . . 1 Scanalyzer 1 | . . 1 . . . Insert Component 1 | . . 1 . . . Garrison Access Hacks . | . . . . . . Unauthorized Hacks 2 | . 1 1 . . . Terminals 2 | . 1 1 . . . Assimilate 2 | . 1 1 . . . Fabricators . | . . . . . . Repair Stations . | . . . . . . Recycling Units . | . . . . . . Scanalyzers . | . . . . . . Garrison Access . | . . . . . . Data Cores Recovered . | . . . . . . Used . | . . . . . . Hacking Detections 11 | . 1 2 . . 8 Full Trace Events 3 | . . . . . 3 Feedback Events . | . . . . . . Feedback Blocked . | . . . . . . Robot Schematics Acquired 1 | . . . . . 1 Robots Built . | . . . . . . Authchips . | . . . . . . Time . | . . . . . . Total Robot Build Rating . | . . . . . . Part Schematics Acquired 2 | . . . . . 2 Parts Built . | . . . . . . Authchips . | . . . . . . Time . | . . . . . . Total Part Build Rating . | . . . . . . Parts Repaired . | . . . . . . Time . | . . . . . . Parts Recycled . | . . . . . . Recycled Matter . | . . . . . . Retrieved Matter . | . . . . . . Retrieved Components . | . . . . . . Parts Scanalyzed 1 | . . 1 . . . Part Schematics Acquired . | . . . . . . Parts Damaged 1 | . . 1 . . . Bothacking | -11 -10 -9 -9 -8 -8 ------------ Run | Yrd Mat Mat Min Mat Sto Used RIF Installer . | . . . . . . Robots Hacked . | . . . . . . Non-combat . | . . . . . . Combat . | . . . . . . Robot Hacks Applied . | . . . . . . Relay Couplers Released . | . . . . . . Fabnet Peak Effective % . | . . . . . . Robots Rewired . | . . . . . . Allies Hacked . | . . . . . . Hacks Repelled . | . . . . . . Allies | -11 -10 -9 -9 -8 -8 -------- Run | Yrd Mat Mat Min Mat Sto Total Allies 14 | . . . 3 . 11 Largest Group 11 | . . . 3 3 11 Highest-Rated Group 273 | . . . 40 40 273 Highest-Rated Ally 100 | . . . 16 16 100 Total Orders . | . . . . . . Ally Attacks 100 | . . . . 30 70 Total Damage 1776 | . . . . 327 1449 Kills 19 | . . . . 2 17 Allies Corrupted . | . . . . . . Allies Melted . | . . . . . . Intel | -11 -10 -9 -9 -8 -8 ------- Run | Yrd Mat Mat Min Mat Sto Robot Analysis Total . | . . . . . . Derelict Logs Recovered 1 | . . . 1 . . Drone Launches . | . . . . . . Drone Recoveries . | . . . . . . Exploration | -11 -10 -9 -9 -8 -8 ------------- Run | Yrd Mat Mat Min Mat Sto Turns Passed 2040 | 73 411 424 212 201 719 Spaces Moved 1201 | 49 241 255 120 132 404 Core 12 | 7 4 . . . 1 Treads . | . . . . . . Legs 1165 | 42 237 255 120 132 379 Wheels 24 | . . . . . 24 Hover . | . . . . . . Flight . | . . . . . . Fastest Speed 50 | 50 120 120 120 120 115 Average Speed 126 | 119 126 121 123 120 132 Slowest Speed 550 | 190 300 190 190 190 550 Overloaded Moves . | . . . . . . Propulsion Burnouts . | . . . . . . Robots Hopped . | . . . . . . Cave-ins Triggered . | . . . . . . Exploration Rate (%) 30 | 4 35 27 32 14 72 Regions Visited 5 Branch Regions 2 Pre-discovered Areas 2 | . . . 1 . 1 Known Exits Taken . | . . . . . . Unknown Exits Taken 5 | 1 1 1 1 1 . Scrap Searched . | . . . . . . Spaces Dug . | . . . . . . Terrain Destroyed 22 | . 3 5 3 3 8 Melee . | . . . . . . Projectile 11 | . . . . 3 8 AOE 11 | . 3 5 3 . . Terrain Rammed . | . . . . . . Walls Destroyed . | . . . . . . Machines Disabled . | . . . . . . Actions | -11 -10 -9 -9 -8 -8 --------- Run | Yrd Mat Mat Min Mat Sto Total 1503 | 60 309 314 152 157 511 Wait 35 | . . 24 . . 11 Move 1196 | 48 240 254 119 131 404 Hop . | . . . . . . Pick Up 36 | 6 15 2 5 4 4 Fast Attach 41 | 6 8 1 4 5 17 Attach 20 | . 1 3 2 2 12 Detach . | . . . . . . Swap 3 | . 2 . 1 . . Drop 42 | . 17 2 3 6 14 Fire 102 | . 26 28 15 8 25 Melee 20 | . . . . 1 19 Ram . | . . . . . . Kick 4 | . . . 3 . 1 Crush . | . . . . . . Escape Stasis 4 | . . . . . 4 Rewire . | . . . . . . Trap . | . . . . . . Miscellaneous . | . . . . . . Route ------- -11/Scrapyard -10/Materials -9/Materials -9/Mines -8/Materials -8/Storage History --------- Turn | Location | Event 9 | -11/Scrapyard | Discovered new exit (range 15) 74 | -11/Scrapyard | Entered Materials 276 | -10/Materials | Discovered new exit (range 10) 302 | -10/Materials | Build established: Mutant 485 | -10/Materials | Entered another Materials area 485 | -9/Materials | Evolved 2 slots: Propulsion x1, Utility x1 786 | -9/Materials | Discovered new exit (range 9) 909 | -9/Materials | Entered Mines 1079 | -9/Mines | Assisted by bots powering up and referring to "LRC-V3" 1096 | -9/Mines | Discovered new exit (range 14) 1121 | -9/Mines | Entered Materials 1121 | -8/Materials | Accompanied by 3 allies 1121 | -8/Materials | Evolved 2 slots: Utility x1, Weapon x1 1188 | -8/Materials | Discovered new exit (range 11) 1249 | -8/Materials | Lost 3 allies 1322 | -8/Materials | Entered Storage 1331 | -8/Storage | Met 01-MTF 1377 | -8/Storage | Assisted by bots powering up and referring to "LRC-V3" 1628 | -8/Storage | Learned location of Armory (-4) 1674 | -8/Storage | Garrison activated, responded to threat 1676 | -8/Storage | Build established: Commander-Mutant 1706 | -8/Storage | Lost 3 allies 1722 | -8/Storage | First assault squad dispatched 1794 | -8/Storage | Lost 7 allies 1832 | -8/Storage | Core integrity fell below 50% 1904 | -8/Storage | Lost 14 parts (2p4n4u4w) 1979 | -8/Storage | Core integrity fell below 20% 2016 | -8/Storage | Lost 3 parts (1u2w) 2041 | -8/Storage | Destroyed by G-47 Trooper with Particle Gun Last Messages --------------- Acquired Lgt. Nuclear Core. XTWIXZOCFEX6BGEDY|MI|7K EYY>%ACM Acquired Lgt. Armor Plating. Acquired 3 matter. The unstable cave ceiling collapses. U-05 Engineer lays Concrete. K-01 Serf collects debris. U-05 Engineer lays Concrete. Critical hit (Burn: +37). U-05 Engineer lays Concrete. G-47 Trooper knocked back. U-05 Engineer builds a Wall. System corrupted: Energy discharge (-36). U-05 Engineer lays Concrete. Lgt. Armor Plating destroyed. U-05 Engineer lays Concrete. G-47 Trooper destroyed. System corrupted: Matter fused (-10). Pulse Rifle destroyed. K-01 Serf collects debris. Map ----- +----------------------------------------------------+ | ???# #????????# #?????????????????????????? | | ???# #????????###"T"####?????????????????????????? | | ???# #??????????#####????????????????????????????? | | ##?# #?????????????????????????##+#??????????????? | | ###+########??????????????##### ??????????????? | | ## #??????????????# + ? ????????????? | | ##= """"" #?????????###### # ? ????????????? | | ###!!"???" #?????????#^ # # #? ????????????? | | ??#=*"??"" #########?# ^ # #[## ###?????????? | | ??#%""??" ##!!!!#T### ## !%[## ######????? | | ??#="???" ## ## # #[!! #????? | | ###%""""" ##!!!! ! # #????? | | #!* ## # ####+## # #????? | | " #+###+#### ## ] ??????? | | " # !! % [!/ ##/#########+#????? | | " + !%"% %% % % ## # #????? | | " #=!*%" [[ ## # #????? | | ###+#######=! # # # ## #????? | | #%[ ?? ### ## #????? | | #% ?= = ###???## # # ##???? | | ###[ =!!["" ??????### k a # #???? | | ? =[%[[????????# ; # # #????? | | # =%???????????# # # ##???? | | #### ????????????# ########### #???? | | ???#######+##????########%= ###### | | ?????????? a @ m # | | ?????????? ag g | | ?????????????########+####T## #######+## " | | ?????????????????????????#####+#### # / | | ??????????????????????????????????# """ | | ??????????????????????????????????# """ " | | ??????????????????????????????????# """ # | | ??????????????????????????????????# | | ??????????????????????????????????# """ # | | ??????????????????????????????????# """ | | ??????????????????????????????????# """ ## # # | | ??????????????????????????????????# #### | | ??????????????????????????????????# """ """"#??? | | ??????????????????????????????????# """ ##??????? | | ??????????????????????????????????# """ #???????? | | ??????????????????????????????????# #???????? | | ??????????????????????????????????########???????? | | ?????????????????????????????????????????????????? | | ?????????????????????????????????????????????????? | | ?????????????????????????????????????????????????? | | ?????????????????????????????????????????????????? | | ?????????????????????????????????????????????????? | | | | | | | +----------------------------------------------------+ Best States ------------- Heat Dissipation 45 Energy Generation 17 Energy Capacity 265 Matter Stores 450 Matter Capacity 450 Sight Range 16 Terrain Scan Density 10 Armor Coverage 150 Power Shielding 66 Propulsion Shielding 66 Evasion (%) 55 Targeting Accuracy 5 Melee Accuracy 5 Item Schematics ----------------- Hrd. Medium Armor Plating | -8/Storage | Hacked Coolant Injector | -8/Storage | Hacked Robot Schematics ------------------ L-31 Rogue | -8/Storage | Hacked Fabricated ------------ Nothing Alien Tech Used ----------------- None Achievements -------------- None Challenges ------------ None Game ------ Seed GlidesysCobblerCloak Manual? 0 Play Time 00:36:19 Cumulative 25.0 hours Start 2024.06.05 @ 02:59:23 End 2024.06.05 @ 03:34:02 Sessions 1 Manual Loads 0 Difficulty Rogue Special Mode None Game No. 16 Rogue 16 Adventurer 0 Explorer 0 Win Type - Total 0 Types 0/0/0/0/0/0/0/0/0 Lore% 15 Gallery% 27 Achievement% 21 Wizard Run 0 Options --------- Layout 1 ASCII 0 Keyboard 0 Movement Numpad Keybinds 0 Fullscreen 1 Font 24/Smallcaps Map View 50x35 Zoom Use 0% Tactical HUD 0 Map Filters NONE Filters NONE Steam 1 RUN: d9e7310c-d64a-49f1-9d46-6e73ee997560